bitfinex/quotes_ETHUSD_20250112
["timestamp","ask_amount","ask_price","bid_price","bid_amount"]
[1736668353325,0.08083476,3271.3,3271.2,0.97092877]
[1736668353832,0.207,3271.4,3271.2,0.97092877]
[1736668354134,0.207,3271.4,3271.3,1.21288766]
[1736668356542,0.80940792,3271.8,3271.3,1.21288766]
[1736668356543,0.03820792,3271.8,3271.3,1.21288766]
[1736668356830,0.207,3271.8,3271.7,1.21288766]
[1736668357417,0.22120791,3271.8,3271.7,1.21288766]
[1736668358399,0.207,3271.8,3271.7,1.21288766]
[1736668358712,0.28719865,3271.8,3271.7,1.21288766]
[1736668359748,0.28719865,3271.8,3271.7,1.98528766]
[1736668359948,0.28719865,3271.8,3271.7,2.18381643]
[1736668361017,0.08019865,3271.8,3271.7,1.98528766]
[1736668361220,0.06593873,3271.8,3271.7,1.98528766]
[1736668361409,0.207,3272.0,3271.7,1.98528766]
[1736668361605,0.06593873,3271.8,3271.7,1.98528766]
[1736668361800,0.01440994,3271.9,3271.7,1.98528766]
[1736668362257,0.06593873,3271.8,3271.7,1.98528766]
[1736668362756,0.08019865,3271.8,3271.7,1.98528766]
[1736668364774,0.08019865,3271.8,3271.7,1.21288766]
[1736668366561,0.207,3272.0,3271.7,1.21288766]
[1736668367391,0.207,3272.0,3271.9,1.21288766]
[1736668368459,0.28727483,3272.0,3271.9,1.21288766]
[1736668369767,0.28727483,3272.0,3271.9,1.96678766]
[1736668376029,0.28727483,3272.0,3271.9,1.21288766]
[1736668381912,0.28727483,3272.0,3271.7,1.21288766]
[1736668382425,0.28727483,3272.0,3271.5,6.0339]
[1736668382595,2.91073,3271.9,3271.5,5.28]
[1736668382801,0.03820651,3271.8,3271.5,5.28]
[1736668383145,0.10422675,3271.8,3271.5,5.28]
[1736668383823,0.10422675,3271.8,3271.3,6.49288766]
[1736668386343,0.01416189,3271.7,3271.3,6.49288766]
[1736668386638,0.03820651,3271.8,3271.3,6.49288766]
[1736668387016,0.0661378,3271.7,3271.3,6.49288766]
[1736668387433,0.03820651,3271.8,3271.5,1.21288766]
[1736668387638,0.06625537,3271.6,3271.5,1.21288766]
[1736668387956,0.03820651,3271.8,3271.5,1.21288766]
[1736668388291,0.0661378,3271.7,3271.5,1.21288766]
[1736668388708,0.03820651,3271.8,3271.5,1.21288766]
[1736668389034,0.06625537,3271.6,3271.5,1.21288766]
[1736668389196,0.03820651,3271.8,3271.5,1.21288766]
[1736668389592,0.0661378,3271.7,3271.5,1.21288766]
[1736668390037,0.01401185,3271.6,3271.5,1.21288766]
[1736668390337,0.03820651,3271.8,3271.5,1.21288766]
[1736668390838,0.0661378,3271.7,3271.5,1.21288766]
[1736668391041,0.08029969,3271.7,3271.5,1.21288766]
[1736668391226,0.01416189,3271.7,3271.5,1.21288766]
[1736668391896,0.03820651,3271.8,3271.5,1.21288766]
[1736668392241,0.06595528,3271.6,3271.5,1.21288766]
[1736668392400,0.03820651,3271.8,3271.5,1.21288766]
[1736668392800,0.06583771,3271.7,3271.5,1.21288766]
[1736668393216,0.03820651,3271.8,3271.5,1.21288766]
[1736668393416,0.06587377,3271.6,3271.3,6.49288766]
[1736668393628,0.0142659,3271.7,3271.3,6.49288766]
[1736668393817,2.17769651,3271.8,3271.3,6.49288766]
[1736668394013,0.06586267,3271.6,3271.3,6.49288766]
[1736668394218,0.06574511,3271.7,3271.3,6.49288766]
[1736668394502,0.06586267,3271.6,3271.3,6.49288766]
[1736668394933,0.03820651,3271.8,3271.3,6.49288766]
[1736668395327,0.06574511,3271.7,3271.3,6.49288766]
[1736668395745,0.03820651,3271.8,3271.3,6.49288766]
[1736668395947,0.06586267,3271.6,3271.3,1.21288766]
[1736668396153,0.06574511,3271.7,3271.3,1.21288766]
[1736668396305,0.03820651,3271.8,3271.3,1.21288766]
[1736668396505,0.06586267,3271.6,3271.3,1.21288766]
[1736668396706,0.06574511,3271.7,3271.3,1.21288766]
[1736668397005,0.03820651,3271.8,3271.3,1.21288766]
[1736668397345,0.07997854,3271.6,3271.3,1.21288766]
[1736668397544,0.89817854,3271.6,3271.3,1.21288766]
[1736668399823,0.8182,3271.6,3271.3,1.21288766]
[1736668400422,0.07994607,3271.5,3271.3,1.21288766]
[1736668408598,0.07994607,3271.5,3271.3,2.01478766]
[1736668409291,0.06598025,3271.5,3271.3,2.01478766]
[1736668409498,0.207,3271.6,3271.3,2.01478766]
[1736668410493,0.03820886,3271.8,3271.3,2.01478766]
[1736668410699,0.27273397,3271.7,3271.5,1.21288766]
[1736668411571,0.01411587,3271.6,3271.5,1.21288766]
[1736668412071,0.207,3271.7,3271.5,1.21288766]
[1736668412309,0.06585154,3271.6,3271.5,1.21288766]
[1736668412488,0.06585154,3271.6,3271.3,2.01478766]
[1736668412662,0.207,3271.7,3271.3,1.21288766]
[1736668412864,0.06585154,3271.6,3271.3,1.21288766]
[1736668414304,0.10406041,3271.6,3271.3,1.21288766]
[1736668418208,0.06585154,3271.6,3271.3,1.21288766]
[1736668422012,0.10406193,3271.6,3271.3,1.21288766]
[1736668424548,0.06585154,3271.6,3271.3,1.21288766]
[1736668425718,0.207,3271.5,3271.3,1.21288766]
[1736668426134,0.06605889,3271.4,3271.3,1.21288766]
[1736668427207,0.06605889,3271.4,3271.3,2.35787043]
[1736668432327,0.06605889,3271.4,3271.3,0.8097]
[1736668432534,0.06605889,3271.4,3271.2,1.21288766]
[1736668436030,0.06605889,3271.4,3271.0,5.28]
[1736668436237,0.06605889,3271.4,3271.1,1.21288766]
[1736668438967,0.8106,3271.3,3270.6,6.0897]
[1736668439112,0.34368061,3271.2,3270.6,7.30258766]
[1736668439312,0.06589315,3271.1,3270.8,1.21288766]
[1736668440252,0.06589315,3271.1,3271.0,1.21288766]
[1736668440623,0.207,3271.5,3271.0,2.02258766]
[1736668440955,0.207,3271.5,3271.0,0.8097]
[1736668441259,0.06279698,3271.4,3271.0,0.8097]
[1736668441437,0.06279698,3271.4,3271.3,1.21288766]
[1736668444415,0.207,3271.5,3271.3,1.21288766]
[1736668444616,0.06286938,3271.4,3271.3,1.21288766]
[1736668445142,0.84106938,3271.4,3271.3,1.21288766]
[1736668445328,0.84106938,3271.4,3270.7,0.7786]
[1736668445509,0.03821264,3271.3,3270.9,1.21288766]
[1736668445712,0.06310455,3271.2,3270.9,1.21288766]
[1736668445955,0.24521264,3271.3,3270.9,1.21288766]
[1736668446152,0.06337978,3271.1,3270.9,1.21288766]
[1736668446379,0.24521264,3271.3,3270.9,1.21288766]
[1736668446668,0.06349739,3271.0,3270.9,1.21288766]
[1736668446834,0.24521264,3271.3,3270.9,1.21288766]
[1736668447033,0.06349739,3271.0,3270.9,1.21288766]
[1736668447233,0.24521264,3271.3,3270.9,1.21288766]
[1736668447459,0.06349739,3271.0,3270.9,1.21288766]
[1736668447970,0.24521264,3271.3,3270.9,1.21288766]
[1736668448139,0.06349739,3271.0,3270.9,1.21288766]
[1736668448345,2.38508264,3271.3,3270.9,1.21288766]
[1736668448545,0.06349739,3271.0,3270.9,1.21288766]
[1736668448870,2.38508264,3271.3,3270.9,1.21288766]
[1736668449032,0.06349739,3271.0,3270.9,1.21288766]
[1736668449228,0.7782,3271.2,3270.9,1.21288766]
[1736668449433,2.20351739,3271.0,3270.4,5.28]
[1736668449640,0.03821873,3270.9,3270.6,1.21288766]
[1736668449846,0.10183373,3270.9,3270.6,1.21288766]
[1736668450340,0.10183373,3270.9,3270.8,1.21288766]
[1736668450671,0.841815,3270.9,3270.8,1.21288766]
[1736668455963,0.063615,3270.9,3270.8,1.21288766]
[1736668456171,0.07686196,3270.9,3270.8,1.21288766]
[1736668456344,0.01324696,3270.9,3270.8,1.21288766]
[1736668456540,0.07660029,3270.9,3270.8,1.21288766]
[1736668456748,0.03821843,3271.1,3270.8,1.21288766]
[1736668458683,0.03821843,3271.1,3270.2,0.61130503]
[1736668458684,0.7782,3271.0,3270.2,4.38990503]
[1736668458889,0.03821961,3270.9,3270.5,1.21288766]
[1736668459787,0.01309686,3270.8,3270.5,1.21288766]
[1736668461766,0.7782,3270.7,3270.5,1.21288766]
[1736668461950,0.01309686,3270.8,3270.5,1.21288766]
[1736668462151,0.01279662,3270.6,3270.5,1.21288766]
[1736668462395,2.91822,3271.0,3270.5,1.21288766]
[1736668462587,0.01279662,3270.6,3270.5,1.21288766]
[1736668462890,2.91822,3271.0,3270.5,1.21288766]
[1736668463394,0.01322093,3270.9,3270.5,1.21288766]
[1736668464592,0.01322093,3270.9,3270.2,0.7969746]
[1736668464593,0.01322093,3270.9,3270.7,1.21288766]
[1736668465005,0.05144013,3270.9,3270.5,1.21288766]
[1736668466382,0.05144013,3270.9,3270.2,0.7786]
[1736668466586,0.05144013,3270.9,3270.5,1.21288766]
[1736668467273,0.06343008,3270.8,3270.5,1.21288766]
[1736668467604,0.01292071,3270.7,3270.5,1.21288766]
[1736668468089,0.05114203,3270.7,3270.5,1.21288766]
[1736668471107,0.25814203,3270.7,3270.5,1.21288766]
[1736668472069,1.01724203,3270.7,3270.5,1.21288766]
[1736668473497,1.01724248,3270.7,3270.5,1.21288766]
[1736668475273,0.21992071,3270.7,3270.5,1.21288766]
[1736668475601,0.06341681,3270.6,3270.5,1.21288766]
[1736668478205,0.06341681,3270.6,3270.5,1.98358766]
[1736668478795,0.07618727,3270.6,3270.5,1.98358766]
[1736668484305,0.07618727,3270.6,3270.5,1.21288766]
[1736668486579,0.07618727,3270.6,3270.4,1.21288766]
[1736668490511,0.07618727,3270.6,3270.2,0.8039]
[1736668490713,0.07618727,3270.6,3270.3,1.21288766]
[1736668494191,0.07618727,3270.6,3270.5,1.21288766]
[1736668498881,0.07618727,3270.6,3270.3,1.21288766]
[1736668500506,0.07618727,3270.6,3270.5,1.21288766]
[1736668506030,0.07618727,3270.6,3270.5,1.17916041]
[1736668508921,0.07618727,3270.6,3270.2,0.8039]
[1736668509124,0.07618727,3270.6,3270.5,1.21288766]
[1736668513636,0.07618727,3270.6,3270.2,0.8039]
[1736668513852,0.07618727,3270.6,3270.2,1.21288766]
[1736668514030,2.17842925,3270.7,3270.2,1.21288766]
[1736668514351,0.06053143,3270.6,3270.2,1.21288766]
[1736668515534,0.7852,3270.5,3270.2,1.21288766]
[1736668515711,0.09899049,3270.4,3270.2,1.21288766]
[1736668516871,0.06076672,3270.4,3270.2,1.21288766]
[1736668517719,0.01226747,3270.3,3270.2,1.21288766]
[1736668527161,0.07302202,3270.3,3270.2,1.21288766]
[1736668534812,0.07302202,3270.3,3270.2,1.62714997]
[1736668535010,0.06075455,3270.3,3270.2,3.76768997]
[1736668535308,0.207,3270.8,3270.3,0.7707]
[1736668535512,0.207,3270.8,3270.3,0.78907067]
[1736668535715,0.207,3270.8,3270.7,1.21288766]
[1736668538715,0.22006989,3270.8,3270.7,1.21288766]
[1736668539418,0.01306989,3270.8,3270.7,1.21288766]
[1736668542104,0.07323627,3270.8,3270.7,1.21288766]
[1736668568556,0.07323627,3270.8,3270.7,1.41332643]
[1736668568742,0.07323627,3270.8,3270.7,2.20682643]
[1736668569062,2.91005,3271.6,3270.8,0.8085]
[1736668569063,2.68117429,3271.6,3270.8,0.8085]
[1736668569359,2.11777429,3271.6,3271.3,1.21288766]
[1736668569946,0.207,3271.6,3271.3,1.21288766]
[1736668571777,0.01354805,3271.5,3271.3,1.21288766]
[1736668572079,0.05999293,3271.4,3271.3,1.21288766]
[1736668575304,0.07339091,3271.4,3271.3,1.21288766]
[1736668579209,0.07339091,3271.4,3271.3,1.41352643]
[1736668580154,0.207,3271.6,3271.3,1.41352643]
[1736668580350,0.06023833,3271.4,3271.3,1.41352643]
[1736668580615,0.7704,3271.9,3271.3,1.41352643]
[1736668580757,0.06023833,3271.4,3271.3,1.21288766]
[1736668580961,0.207,3271.8,3271.3,1.21288766]
[1736668581275,0.24520884,3271.8,3271.3,1.21288766]
[1736668581468,0.05988558,3271.7,3271.3,1.21288766]
[1736668581677,0.207,3271.8,3271.3,1.21288766]
[1736668581876,0.06000315,3271.6,3271.3,1.21288766]
[1736668582111,0.207,3271.8,3271.3,1.21288766]
[1736668582404,0.06012074,3271.5,3271.3,1.21288766]
[1736668582573,0.01384816,3271.7,3271.3,1.21288766]
[1736668583073,0.06000315,3271.6,3271.3,1.21288766]
[1736668583275,0.207,3271.8,3271.3,1.21288766]
[1736668583476,0.06012074,3271.5,3271.3,1.21288766]
[1736668583673,0.207,3271.8,3271.3,1.21288766]
[1736668583894,0.01384816,3271.7,3271.3,1.21288766]
[1736668584504,0.06000315,3271.6,3271.3,1.21288766]
[1736668584692,0.207,3271.8,3271.3,1.21288766]
[1736668584890,0.06012074,3271.5,3271.3,1.21288766]
[1736668585095,0.207,3271.8,3271.3,1.21288766]
[1736668585311,0.01384816,3271.7,3271.3,1.21288766]
[1736668585514,0.207,3271.8,3271.3,1.21288766]
[1736668585715,0.06005332,3271.6,3271.3,1.21288766]
[1736668586013,0.207,3271.8,3271.3,1.21288766]
[1736668586160,0.0601709,3271.5,3271.3,1.21288766]
[1736668586358,0.207,3271.8,3271.3,1.21288766]
[1736668586609,0.06028849,3271.4,3271.3,1.21288766]
[1736668586912,0.207,3271.8,3271.3,1.21288766]
[1736668587095,0.06063424,3271.4,3271.3,1.21288766]
[1736668587260,0.207,3271.8,3271.3,1.21288766]
[1736668587462,0.0602815,3271.7,3271.3,1.21288766]
[1736668587814,0.207,3271.8,3271.3,1.21288766]
[1736668588111,0.0602815,3271.7,3271.3,1.21288766]
[1736668588309,0.207,3271.8,3271.3,1.21288766]
[1736668588513,0.06039907,3271.6,3271.3,1.21288766]
[1736668588669,0.207,3271.8,3271.3,1.21288766]
[1736668588867,0.06051665,3271.5,3271.3,1.21288766]
[1736668589081,0.207,3271.8,3271.3,1.21288766]
[1736668589423,0.06063424,3271.4,3271.3,1.21288766]
[1736668589592,0.207,3271.8,3271.3,1.21288766]
[1736668589794,0.06063424,3271.4,3271.3,1.21288766]
[1736668589995,0.207,3271.8,3271.3,1.21288766]
[1736668590203,0.06063424,3271.4,3271.3,1.21288766]
[1736668590424,0.207,3271.8,3271.3,1.21288766]
[1736668590580,0.06063424,3271.4,3271.3,1.21288766]
[1736668590783,0.518683,3271.8,3271.3,1.21288766]
[1736668590784,0.207,3271.8,3271.3,1.21288766]
[1736668590983,0.06063424,3271.4,3271.3,1.21288766]
[1736668591185,0.207,3271.8,3271.3,1.21288766]
[1736668591418,0.06066772,3271.4,3271.3,1.21288766]
[1736668591602,0.207,3271.7,3271.4,0.7936]
[1736668591805,0.207,3271.7,3271.6,1.21288766]
[1736668601135,0.207,3271.7,3271.4,2.00648766]
[1736668602600,1.0364,3271.7,3271.4,1.21288766]
[1736668603043,0.07425296,3271.6,3271.4,1.21288766]
[1736668609122,0.207,3271.7,3271.4,2.01538766]
[1736668609464,0.06077104,3271.5,3271.4,2.01538766]
[1736668609669,0.207,3271.8,3271.4,2.92805475]
[1736668609848,0.207,3271.8,3271.6,1.21288766]
[1736668612030,0.013588,3271.7,3271.6,1.21288766]
[1736668612282,0.207,3271.8,3271.6,1.21288766]
[1736668612577,0.013588,3271.7,3271.6,1.21288766]
[1736668612780,0.207,3271.8,3271.6,1.21288766]
[1736668612994,0.013588,3271.7,3271.6,1.21288766]
[1736668613339,0.207,3271.8,3271.6,1.21288766]
[1736668613575,0.013588,3271.7,3271.6,1.21288766]
[1736668613777,0.207,3271.8,3271.6,1.21288766]
[1736668616296,0.07431865,3271.7,3271.6,1.21288766]
[1736668621117,0.207,3271.8,3271.6,1.21288766]
[1736668621481,0.06073625,3271.7,3271.6,1.21288766]
[1736668621681,0.207,3271.8,3271.6,1.21288766]
[1736668622007,0.06073625,3271.7,3271.4,2.01538766]
[1736668622323,0.207,3271.8,3271.4,2.01538766]
[1736668622618,0.06085384,3271.6,3271.4,2.01538766]
[1736668622858,0.207,3271.8,3271.4,2.01538766]
[1736668623196,0.06073625,3271.7,3271.4,2.01538766]
[1736668623580,0.207,3271.8,3271.4,2.01538766]
[1736668623781,0.06085384,3271.6,3271.4,2.01538766]
[1736668624011,0.7553,3271.9,3271.4,2.01538766]
[1736668624320,0.207,3271.8,3271.4,2.01538766]
[1736668624533,0.26761868,3271.8,3271.4,2.01538766]
[1736668624675,0.013588,3271.7,3271.4,2.01538766]
[1736668624875,0.26761868,3271.8,3271.4,2.01538766]
[1736668625127,0.013588,3271.7,3271.4,2.01538766]
[1736668625331,0.06061868,3271.8,3271.4,2.01538766]
[1736668625495,0.07429178,3271.6,3271.4,2.01538766]
[1736668625699,0.207,3271.8,3271.4,2.01538766]
[1736668625912,0.06097142,3271.5,3271.4,2.01538766]
[1736668626232,0.207,3271.8,3271.4,2.95890643]
[1736668626379,0.207,3271.8,3271.4,2.01538766]
[1736668626579,0.06073625,3271.7,3271.4,2.01538766]
[1736668626887,0.06085384,3271.6,3271.4,2.01538766]
[1736668627090,0.207,3271.8,3271.4,2.01538766]
[1736668627296,0.06076969,3271.7,3271.4,2.01538766]
[1736668627514,0.207,3271.8,3271.4,2.01538766]
[1736668627695,0.06088727,3271.6,3271.4,2.01538766]
[1736668627903,0.207,3271.8,3271.4,2.01538766]
[1736668628396,0.06076969,3271.7,3271.4,2.01538766]
[1736668628602,0.207,3271.8,3271.4,2.01538766]
[1736668629116,0.06076969,3271.7,3271.4,2.01538766]
[1736668629286,0.207,3271.8,3271.4,2.01538766]
[1736668629630,0.06076969,3271.7,3271.4,2.01538766]
[1736668629985,0.207,3271.8,3271.4,2.01538766]
[1736668630184,0.06088727,3271.6,3271.4,2.01538766]
[1736668630449,0.207,3271.8,3271.4,2.95890643]
[1736668630651,0.207,3271.8,3271.4,2.97724912]
[1736668630955,0.06068815,3271.7,3271.4,2.97724912]
[1736668631156,0.207,3271.8,3271.4,2.97724912]
[1736668631355,0.06081129,3271.6,3271.4,2.03373035]
[1736668631539,0.207,3271.8,3271.4,2.03373035]
[1736668631919,0.06083865,3271.7,3271.4,2.03373035]
[1736668632166,0.207,3271.8,3271.4,2.03373035]
[1736668632369,0.0609674,3271.6,3271.4,2.03373035]
[1736668632576,0.207,3271.8,3271.4,2.03373035]
[1736668632860,0.06108499,3271.5,3271.4,2.03373035]
[1736668633070,0.207,3271.8,3271.4,2.97908339]
[1736668633235,0.207,3271.8,3271.4,2.03373035]
[1736668633435,0.06084982,3271.7,3271.4,2.03373035]
[1736668633835,0.207,3271.8,3271.4,2.03373035]
[1736668634035,0.0609674,3271.6,3271.4,2.03373035]
[1736668634262,0.207,3271.8,3271.4,2.03373035]
[1736668634435,0.06108499,3271.5,3271.4,2.03373035]
[1736668634762,0.06108499,3271.5,3271.4,2.97908339]
[1736668634964,0.207,3271.8,3271.4,2.97908339]
[1736668635120,0.06108499,3271.5,3271.4,2.03373035]
[1736668635427,0.207,3271.8,3271.4,2.01538766]
[1736668635637,0.06108499,3271.5,3271.4,2.01538766]
[1736668635833,0.207,3271.8,3271.4,2.01538766]
[1736668636034,0.06108499,3271.5,3271.4,2.01538766]
[1736668636331,0.06100344,3271.5,3271.4,2.95890643]
[1736668636535,0.207,3271.8,3271.4,2.95890643]
[1736668636842,0.06100344,3271.5,3271.4,2.01538766]
[1736668637041,0.207,3271.8,3271.4,2.01538766]
[1736668637247,0.06100344,3271.5,3271.4,2.01538766]
[1736668637456,0.207,3271.8,3271.4,2.01538766]
[1736668637657,0.06100344,3271.5,3271.4,2.01538766]
[1736668637991,0.06100344,3271.5,3271.4,2.95890643]
[1736668638138,0.207,3271.8,3271.4,2.95890643]
[1736668638470,0.06100344,3271.5,3271.4,2.01538766]
[1736668638673,0.207,3271.8,3271.4,2.01538766]
[1736668638875,0.06100344,3271.5,3271.4,2.01538766]
[1736668639378,0.207,3271.8,3271.4,2.01538766]
[1736668639678,0.06100344,3271.5,3271.4,2.01538766]
[1736668639860,0.207,3271.8,3271.4,2.65103176]
[1736668640067,0.06100344,3271.5,3271.4,2.01538766]
[1736668640263,0.207,3271.8,3271.4,2.01538766]
[1736668640471,0.06100344,3271.5,3271.4,2.01538766]
[1736668640677,0.207,3271.8,3271.4,2.01538766]
[1736668640845,0.06100344,3271.5,3271.4,2.01538766]
[1736668641045,0.207,3271.8,3271.4,2.01538766]
[1736668641258,0.06100344,3271.5,3271.4,2.01538766]
[1736668641459,0.207,3271.8,3271.4,2.01538766]
[1736668641950,0.06068674,3271.7,3271.4,2.01538766]
[1736668642254,0.207,3271.8,3271.4,2.01538766]
[1736668642888,0.0606923,3271.7,3271.4,2.01538766]
[1736668643190,0.207,3271.8,3271.4,2.01538766]
[1736668643389,0.06080988,3271.6,3271.4,2.01538766]
[1736668643686,0.207,3271.8,3271.4,2.01538766]
[1736668643845,0.06092746,3271.5,3271.4,2.01538766]
[1736668644479,0.207,3271.8,3271.4,2.01538766]
[1736668644960,0.0606923,3271.7,3271.4,2.01538766]
[1736668645160,0.207,3271.8,3271.4,2.01538766]
[1736668645735,0.0606923,3271.7,3271.4,2.01538766]
[1736668645940,0.207,3271.8,3271.4,2.01538766]
[1736668646148,0.06081545,3271.6,3271.4,2.01538766]
[1736668646314,0.207,3271.8,3271.4,2.01538766]
[1736668646513,0.06093303,3271.5,3271.4,2.01538766]
[1736668646841,0.207,3271.8,3271.4,2.01538766]
[1736668647047,0.06093303,3271.5,3271.4,2.01538766]
[1736668647231,0.207,3271.8,3271.4,2.01538766]
[1736668647756,0.06061633,3271.7,3271.4,2.01538766]
[1736668648047,0.207,3271.8,3271.4,2.01538766]
[1736668648498,0.06061633,3271.7,3271.4,2.01538766]
[1736668648700,0.207,3271.8,3271.4,2.01538766]
[1736668648903,0.06061633,3271.7,3271.4,2.01538766]
[1736668649101,0.207,3271.8,3271.4,2.01538766]
[1736668649311,0.06061633,3271.7,3271.4,2.01538766]
[1736668649510,0.207,3271.8,3271.4,2.01538766]
[1736668649710,0.06061633,3271.7,3271.4,2.01538766]
[1736668649953,0.207,3271.8,3271.4,2.01538766]
[1736668650154,0.0607339,3271.6,3271.4,2.01538766]
[1736668650324,0.207,3271.8,3271.4,2.01538766]
[1736668650656,0.06085148,3271.5,3271.4,2.01538766]
[1736668651253,0.207,3271.8,3271.4,2.01538766]
[1736668651458,0.06085148,3271.5,3271.4,2.01538766]
[1736668651612,0.207,3271.8,3271.4,2.01538766]
[1736668651812,0.06085148,3271.5,3271.4,2.01538766]
[1736668652114,0.05832151,3271.5,3271.4,2.01538766]
[1736668652330,0.207,3271.8,3271.4,2.01538766]
[1736668652544,0.05832151,3271.5,3271.4,2.01538766]
[1736668652729,0.207,3271.8,3271.4,2.01538766]
[1736668652931,0.05832151,3271.5,3271.4,2.01538766]
[1736668653131,0.207,3271.8,3271.4,2.01538766]
[1736668653333,0.05832151,3271.5,3271.4,2.01538766]
[1736668653532,0.207,3271.8,3271.4,2.01538766]
[1736668653856,0.05832151,3271.5,3271.4,2.01538766]
[1736668654058,0.207,3271.8,3271.4,2.01538766]
[1736668654230,0.05832151,3271.5,3271.4,2.01538766]
[1736668654433,0.7553,3271.9,3271.4,2.01538766]
[1736668654634,0.05832151,3271.5,3271.4,2.01538766]
[1736668654834,0.207,3271.8,3271.4,2.45725274]
[1736668655033,0.05832151,3271.5,3271.4,2.01538766]
[1736668655258,0.207,3271.8,3271.4,2.01538766]
[1736668655761,0.05808636,3271.7,3271.4,2.01538766]
[1736668655963,0.207,3271.8,3271.4,2.01538766]
[1736668656159,0.05820393,3271.6,3271.4,2.01538766]
[1736668656362,0.207,3271.8,3271.4,2.01538766]
[1736668656562,0.05832151,3271.5,3271.4,2.01538766]
[1736668656722,0.207,3271.8,3271.4,2.01538766]
[1736668656922,0.05808636,3271.7,3271.4,2.01538766]
[1736668657123,0.207,3271.8,3271.4,2.01538766]
[1736668657323,0.05808636,3271.7,3271.4,2.01538766]
[1736668657523,0.207,3271.8,3271.4,2.01538766]
[1736668657840,0.05808636,3271.7,3271.4,2.01538766]
[1736668658242,0.207,3271.8,3271.4,2.01538766]
[1736668658741,0.05808636,3271.7,3271.4,2.01538766]
[1736668658968,0.207,3271.8,3271.4,2.01538766]
[1736668659171,0.05820393,3271.6,3271.4,2.01538766]
[1736668659531,0.207,3271.8,3271.4,2.01538766]
[1736668659733,0.05832151,3271.5,3271.4,2.01538766]
[1736668659931,0.207,3271.8,3271.4,2.01538766]
[1736668660259,0.05832151,3271.5,3271.4,2.01538766]
[1736668660430,0.207,3271.8,3271.4,2.01538766]
[1736668660631,0.05832151,3271.5,3271.4,2.01538766]
[1736668660876,0.207,3271.8,3271.4,2.01538766]
[1736668661044,0.05833825,3271.5,3271.4,2.01538766]
[1736668661254,0.207,3271.8,3271.4,2.01538766]
[1736668661461,0.05833825,3271.5,3271.4,2.01538766]
[1736668661667,0.207,3271.8,3271.4,2.01538766]
[1736668661971,0.7553,3271.9,3271.4,2.01538766]
[1736668662131,0.9623,3271.9,3271.4,2.01538766]
[1736668662327,0.05798553,3271.8,3271.4,2.01538766]
[1736668669980,0.05798553,3271.8,3271.4,0.8025]
[1736668672086,2.13958,3271.7,3271.2,5.28]
[1736668672246,0.7605,3271.4,3271.2,5.28]
[1736668672579,0.7605,3271.0,3270.5,1.21288766]
[1736668672890,0.24521679,3270.9,3270.5,1.21288766]
[1736668673379,0.05902976,3270.8,3270.5,1.21288766]
[1736668680395,0.09724655,3270.8,3270.3,6.0782]
[1736668680542,0.05902976,3270.8,3270.5,1.21288766]
[1736668685898,0.01260749,3270.7,3270.5,1.21288766]
[1736668686267,0.05889706,3270.6,3270.5,1.21288766]
[1736668689603,0.07135442,3270.6,3270.5,1.21288766]
[1736668699303,0.207,3270.9,3270.5,1.21288766]
[1736668699805,0.05865062,3270.8,3270.5,1.21288766]
[1736668700705,0.01260749,3270.7,3270.5,1.21288766]
[1736668701001,0.207,3270.9,3270.5,1.21288766]
[1736668701460,0.05865062,3270.8,3270.5,1.21288766]
[1736668701661,0.07140823,3270.8,3270.5,1.21288766]
[1736668705695,0.207,3270.9,3270.5,1.21288766]
[1736668707680,0.207,3270.8,3270.5,1.21288766]
[1736668708582,0.207,3270.8,3270.7,1.21288766]
[1736668708986,0.27830686,3270.8,3270.7,1.21288766]
[1736668728439,0.27830686,3270.8,3270.5,1.21288766]
[1736668734440,0.27830686,3270.8,3270.7,1.21288766]
[1736668742453,0.07130686,3270.8,3270.7,2.01208766]
[1736668742651,0.07130686,3270.8,3270.7,2.42732743]
[1736668750843,0.07130686,3270.8,3270.7,2.01208766]
[1736668751513,0.07130686,3270.8,3270.3,5.28]
[1736668751662,0.83190686,3270.8,3270.7,1.21288766]
[1736668751862,0.7606,3270.8,3270.7,1.21288766]
[1736668752093,0.81914672,3270.8,3270.7,1.21288766]
[1736668752603,0.83193101,3270.8,3270.7,1.21288766]
[1736668755176,1.13294686,3270.8,3270.7,1.21288766]
[1736668755373,3.27308686,3270.8,3270.3,5.28]
[1736668755704,3.27308686,3270.8,3270.5,1.21288766]
[1736668762237,1.13294686,3270.8,3270.5,1.21288766]
[1736668762893,0.83193101,3270.8,3270.5,1.21288766]
[1736668763629,0.83193101,3270.8,3270.7,1.21288766]
[1736668764534,1.03793101,3270.8,3270.7,1.21288766]
[1736668768344,1.03793101,3270.8,3270.5,1.21288766]
[1736668773739,0.27733101,3270.8,3270.7,1.21288766]
[1736668800334,0.07133101,3270.8,3270.7,2.34720374]
[1736668806052,0.07133101,3270.8,3270.7,1.98478766]
[1736668808828,0.206,3271.0,3270.7,1.98478766]
[1736668812664,0.206,3271.0,3270.9,1.21288766]
[1736668813265,0.206,3271.0,3270.9,2.04058766]
[1736668815666,0.25059127,3271.0,3270.9,2.04058766]
[1736668816181,0.04459127,3271.0,3270.9,2.04808766]
[1736668816358,0.04459127,3271.0,3270.9,2.25595352]
[1736668817902,0.04459127,3271.0,3270.9,7.54345352]
[1736668818224,0.206,3271.5,3271.0,0.0075]
[1736668818477,0.206,3271.5,3271.3,1.21288766]
[1736668818698,0.04486615,3271.4,3271.3,1.21288766]
[1736668820660,0.04486615,3271.4,3271.1,1.21288766]
[1736668820903,2.13989,3271.2,3270.9,6.49288766]
[1736668821205,0.01088577,3271.1,3270.9,1.21288766]
[1736668824496,0.21688577,3271.1,3270.9,1.21288766]
[1736668824799,0.04478643,3271.0,3270.9,1.21288766]
[1736668830851,0.03405075,3271.0,3270.9,1.21288766]
[1736668831147,0.04478643,3271.0,3270.9,1.21288766]
[1736668832048,0.04478643,3271.0,3270.7,1.21288766]
[1736668832436,0.206,3271.1,3270.7,1.21288766]
[1736668832734,0.03409586,3270.9,3270.7,1.21288766]
[1736668832932,0.206,3271.1,3270.7,1.21288766]
[1736668833338,0.52537825,3271.0,3270.1,6.1027]
[1736668833688,2.14008,3270.9,3270.3,1.21288766]
[1736668833826,0.4914,3270.9,3270.1,5.28]
[1736668834024,0.4914,3270.6,3270.1,1.21288766]
[1736668835374,0.03444929,3270.5,3270.1,1.21288766]
[1736668837687,0.00983495,3270.4,3270.1,1.21288766]
[1736668837852,0.206,3270.3,3270.1,1.21288766]
[1736668840086,0.206,3270.3,3269.9,0.85327856]
[1736668840290,0.206,3270.3,3270.0,1.21288766]
[1736668840596,0.03488399,3270.2,3270.0,1.21288766]